bitfinex/quotes_BTCUSD_20240617
["timestamp","ask_amount","ask_price","bid_price","bid_amount"]
[1718617984355,0.860092,65955.0,65954.0,0.45202797]
[1718617984563,0.860092,65955.0,65954.0,0.32618779]
[1718617985029,0.153618,65955.0,65954.0,0.32618779]
[1718617985248,0.002,65955.0,65954.0,0.32618779]
[1718617985458,0.003,65955.0,65954.0,0.46103065]
[1718617985674,0.154618,65955.0,65954.0,0.46103065]
[1718617985883,0.152618,65955.0,65954.0,0.45203065]
[1718617986115,0.153618,65955.0,65954.0,0.46103065]
[1718617986766,0.152618,65955.0,65954.0,0.32818779]
[1718617986974,0.152618,65955.0,65954.0,0.44502982]
[1718617986975,0.151618,65955.0,65954.0,0.44502982]
[1718617987188,0.252618,65955.0,65954.0,0.44502982]
[1718617987427,1.183329,65955.0,65954.0,0.009]
[1718617987640,1.182329,65955.0,65954.0,0.009]
[1718617988305,1.183329,65955.0,65954.0,0.009]
[1718617988971,1.494584,65954.0,65953.0,0.00085]
[1718617989412,1.637584,65954.0,65953.0,0.00085]
[1718617989622,1.940825,65954.0,65953.0,0.00085]
[1718617989829,1.384607,65953.0,65952.0,0.00182]
[1718617990033,1.797853,65953.0,65952.0,0.00182]
[1718617990462,1.494607,65953.0,65952.0,0.00182]
[1718617991285,1.797853,65953.0,65952.0,0.00282]
[1718617991496,1.594607,65953.0,65952.0,0.00282]
[1718617991715,1.594607,65953.0,65945.0,0.00853]
[1718617991716,1.384751,65946.0,65945.0,0.00853]
[1718617991936,1.635051,65946.0,65945.0,0.00853]
[1718617992160,1.852351,65946.0,65945.0,0.00853]
[1718617992371,2.165629,65946.0,65945.0,0.00853]
[1718617992619,1.862351,65946.0,65945.0,0.00853]
[1718617992854,1.489073,65946.0,65945.0,0.00853]
[1718617993066,1.361773,65946.0,65945.0,0.00853]
[1718617993281,1.361773,65946.0,65945.0,0.03153]
[1718617993708,1.675051,65946.0,65945.0,0.01053]
[1718617993963,1.665051,65946.0,65945.0,0.01053]
[1718617994165,1.675051,65946.0,65945.0,0.01053]
[1718617994367,1.665051,65946.0,65945.0,0.01053]
[1718617994575,1.666051,65946.0,65945.0,0.01053]
[1718617994785,1.372773,65946.0,65945.0,0.01053]
[1718617994993,2.28350458,65946.0,65945.0,0.01053]
[1718617995191,2.28250458,65946.0,65945.0,0.01053]
[1718617995417,2.28250458,65946.0,65945.0,0.00853]
[1718617995624,1.97922658,65946.0,65945.0,0.00853]
[1718617995827,1.82713879,65946.0,65945.0,0.01053]
[1718617995953,1.92713879,65946.0,65945.0,0.00853]
[1718617996160,1.88803879,65946.0,65945.0,0.00853]
[1718617996366,2.19331679,65946.0,65945.0,0.00853]
[1718617996563,2.35040458,65946.0,65945.0,0.00853]
[1718617996772,2.04512658,65946.0,65945.0,0.00853]
[1718617996975,2.34340458,65946.0,65945.0,0.00853]
[1718617997249,1.438673,65946.0,65945.0,0.00853]
[1718617997459,1.447673,65946.0,65945.0,0.00953]
[1718617997677,1.574973,65946.0,65945.0,0.00953]
[1718617998321,1.878251,65946.0,65945.0,0.00953]
[1718617998955,1.437673,65946.0,65945.0,0.00953]
[1718618000398,1.296473,65946.0,65945.0,0.00953]
[1718618001089,1.297473,65946.0,65945.0,0.00853]
[1718618001309,1.89853879,65946.0,65945.0,0.00853]
[1718618001513,1.90253879,65946.0,65945.0,0.00853]
[1718618002176,1.89853879,65946.0,65945.0,0.00853]
[1718618002388,1.90453879,65946.0,65945.0,0.00953]
[1718618002597,1.88853879,65946.0,65945.0,0.00953]
[1718618002803,1.433173,65946.0,65945.0,0.00953]
[1718618003012,1.443173,65946.0,65945.0,0.00953]
[1718618003424,1.449173,65946.0,65945.0,0.00953]
[1718618003641,1.77696335,65946.0,65945.0,0.00953]
[1718618003863,2.08024135,65946.0,65945.0,0.00953]
[1718618004076,2.02905114,65946.0,65945.0,0.00953]
[1718618004340,2.37032914,65946.0,65945.0,0.00853]
[1718618004767,2.37832914,65946.0,65945.0,0.00953]
[1718618004977,2.42720179,65946.0,65945.0,0.00953]
[1718618005387,2.32720179,65946.0,65945.0,0.00953]
[1718618005810,2.02692379,65946.0,65945.0,0.00953]
[1718618006231,1.99941144,65946.0,65945.0,0.00953]
[1718618006438,1.95653879,65946.0,65945.0,0.00953]
[1718618007081,1.794451,65946.0,65945.0,0.00953]
[1718618007299,1.491173,65946.0,65945.0,0.00953]
[1718618007506,1.501173,65946.0,65945.0,0.00953]
[1718618007705,1.804451,65946.0,65945.0,0.00953]
[1718618008217,1.87718023,65946.0,65945.0,0.00953]
[1718618008443,2.15656802,65946.0,65945.0,0.00953]
[1718618008656,2.09336879,65946.0,65945.0,0.00953]
[1718618009302,2.19336879,65946.0,65945.0,0.00953]
[1718618009744,2.54664679,65946.0,65945.0,0.00953]
[1718618009951,2.72238354,65946.0,65945.0,0.00953]
[1718618010173,2.87447133,65946.0,65945.0,0.00953]
[1718618010397,0.151653,65940.0,65939.0,0.00854]
[1718618010602,2.47421468,65940.0,65939.0,0.00854]
[1718618010807,2.74250346,65940.0,65939.0,0.00854]
[1718618011027,2.89459125,65940.0,65939.0,0.00854]
[1718618011241,3.19789725,65940.0,65939.0,0.00854]
[1718618011456,3.19789725,65940.0,65919.0,0.0133715]
[1718618011457,0.1417,65936.0,65919.0,0.0133715]
[1718618011715,0.77673289,65924.0,65919.0,0.0133715]
[1718618011914,0.77673289,65924.0,65900.0,0.01580364]
[1718618011915,0.1,65896.0,65886.0,0.1414]
[1718618012178,0.455317,65888.0,65887.0,0.15208779]
[1718618012401,0.455317,65888.0,65884.0,0.19682855]
[1718618012402,0.758897,65885.0,65884.0,0.19682855]
[1718618012612,0.878897,65885.0,65884.0,0.19682855]
[1718618013278,0.91098479,65885.0,65884.0,0.19682855]
[1718618013500,0.281786,65882.0,65881.0,0.13554323]
[1718618013707,1.182537,65880.0,65868.0,0.00060059]
[1718618013910,1.44462479,65880.0,65868.0,0.00060059]
[1718618014114,1.79820679,65880.0,65868.0,0.00060059]
[1718618014303,2.42816458,65880.0,65879.0,1e-06]
[1718618014541,2.60065617,65880.0,65879.0,1e-06]
[1718618014751,2.52065617,65880.0,65879.0,1e-06]
[1718618014962,0.978955,65880.0,65879.0,1e-06]
[1718618015173,0.12007042,65880.0,65879.0,1e-06]
[1718618015394,0.87902542,65880.0,65879.0,1e-06]
[1718618015657,0.88502542,65880.0,65879.0,0.001001]
[1718618015867,0.58144342,65880.0,65879.0,0.001001]
[1718618016464,0.12607042,65880.0,65879.0,0.001001]
[1718618016671,0.98702542,65880.0,65879.0,0.001001]
[1718618017105,0.00807042,65880.0,65879.0,0.001001]
[1718618017319,0.00607042,65880.0,65879.0,0.29418879]
[1718618017530,0.00607042,65880.0,65879.0,0.31718879]
[1718618017952,0.10607042,65880.0,65879.0,0.31718879]
[1718618018359,0.00607042,65880.0,65879.0,0.31718879]
[1718618019027,0.00607042,65880.0,65879.0,0.46898179]
[1718618019176,0.00607042,65880.0,65879.0,0.31718879]
[1718618019394,0.00807042,65880.0,65879.0,0.31718879]
[1718618019654,0.25986142,65880.0,65879.0,0.165101]
[1718618019853,0.10807042,65880.0,65879.0,0.142101]
[1718618020096,0.10607042,65880.0,65879.0,0.142101]
[1718618020313,0.12607042,65880.0,65879.0,0.142101]
[1718618020472,0.12707042,65880.0,65879.0,0.152101]
[1718618020623,0.00707042,65880.0,65879.0,0.152101]
[1718618020838,0.00707042,65880.0,65879.0,0.75956779]
[1718618021498,0.00107042,65880.0,65879.0,0.47798179]
[1718618021714,7.042e-05,65880.0,65879.0,0.46798179]
[1718618022121,0.00207042,65880.0,65879.0,0.78856779]
[1718618022416,0.00207042,65880.0,65879.0,1.08215379]
[1718618022824,0.00107042,65880.0,65879.0,0.77156779]
[1718618022936,0.00207042,65880.0,65879.0,0.33018879]
[1718618023140,0.00307042,65880.0,65879.0,0.34218879]
[1718618023385,0.00260791,65880.0,65879.0,0.34218879]
[1718618023593,0.00260791,65880.0,65879.0,1.10115379]
[1718618023800,0.00260791,65880.0,65879.0,1.40473979]
[1718618024215,0.00260791,65880.0,65879.0,0.34218879]
[1718618024216,0.00354292,65880.0,65879.0,0.34218879]
[1718618024832,0.00354292,65880.0,65879.0,0.49398179]
[1718618025034,0.00354292,65880.0,65879.0,0.34218879]
[1718618025262,0.00093501,65880.0,65879.0,0.31618879]
[1718618025696,0.00193501,65880.0,65879.0,0.34218879]
[1718618025926,0.00193501,65880.0,65879.0,0.32818879]
[1718618025927,0.10193501,65880.0,65879.0,0.32818879]
[1718618026229,0.25272601,65880.0,65879.0,0.33018879]
[1718618026363,0.55630801,65880.0,65879.0,0.155101]
[1718618026558,0.10193501,65880.0,65879.0,0.153101]
[1718618026766,0.00193501,65880.0,65879.0,0.76056779]
[1718618026968,0.00193501,65880.0,65879.0,0.76256779]
[1718618026969,0.00093501,65880.0,65879.0,0.76256779]
[1718618027169,0.00093501,65880.0,65879.0,0.30718879]
[1718618027369,0.00093501,65880.0,65879.0,1.06615379]
[1718618027597,0.00093501,65880.0,65879.0,1.08915379]
[1718618027797,0.00093501,65880.0,65879.0,0.78556779]
[1718618028158,0.00093501,65880.0,65879.0,0.33018879]
[1718618028494,0.00093501,65880.0,65879.0,0.48098179]
[1718618028697,0.00093501,65880.0,65879.0,1.10215379]
[1718618028907,0.00093501,65880.0,65879.0,1.08815379]
[1718618029306,0.00093501,65880.0,65879.0,0.79856779]
[1718618029515,0.00093501,65880.0,65879.0,0.78556779]
[1718618029723,0.00093501,65880.0,65879.0,1.08915379]
[1718618029927,0.00093501,65880.0,65879.0,0.49398179]
[1718618030085,0.00093501,65880.0,65879.0,0.32818879]
[1718618031143,0.00093501,65880.0,65879.0,0.47998179]
[1718618031351,0.00093501,65880.0,65879.0,0.78356779]
[1718618031516,0.00093501,65880.0,65879.0,0.79756779]
[1718618031931,0.00093501,65880.0,65879.0,0.34218879]
[1718618032145,0.00093501,65880.0,65879.0,0.49398179]
[1718618032318,0.00093501,65880.0,65879.0,0.79756779]
[1718618032986,0.00093501,65880.0,65879.0,1.10115379]
[1718618033193,0.00093501,65880.0,65879.0,1.40473979]
[1718618033407,0.00093501,65880.0,65879.0,1.10115379]
[1718618033831,0.00093501,65880.0,65879.0,1.40473979]
[1718618034036,0.00093501,65880.0,65879.0,1.22711349]
[1718618034238,0.00093501,65880.0,65879.0,1.53070183]
[1718618034459,0.00093501,65880.0,65879.0,1.33513994]
[1718618034692,0.00093501,65880.0,65879.0,1.33513946]
[1718618035134,0.00093501,65880.0,65879.0,1.29009474]
[1718618035338,0.00093501,65880.0,65879.0,1.83377018]
[1718618035549,0.00093501,65880.0,65879.0,1.74368074]
[1718618035762,0.00093501,65880.0,65879.0,2.04726674]
[1718618035991,0.00093501,65880.0,65879.0,2.09726674]
[1718618036204,0.00093501,65880.0,65879.0,2.74291031]
[1718618036421,0.00093501,65880.0,65879.0,3.00110506]
[1718618037022,0.1,65907.0,65900.0,0.151744]
[1718618037253,0.1,65907.0,65891.0,0.30353]
[1718618037254,0.1,65904.0,65901.0,0.17508779]
[1718618038085,0.0986951,65911.0,65905.0,0.151732]
[1718618038351,0.0986951,65911.0,65906.0,0.174731]
[1718618038803,0.0986951,65907.0,65906.0,0.023]
[1718618039013,0.5538801,65907.0,65906.0,0.023]
[1718618039421,0.5738801,65907.0,65906.0,0.023]
[1718618039638,0.8773371,65907.0,65906.0,0.023]
[1718618040413,0.8573371,65907.0,65906.0,0.023]
[1718618040621,0.8573371,65907.0,65906.0,0.034]
[1718618040850,0.0986951,65908.0,65906.0,0.034]
[1718618041086,0.0986951,65914.0,65906.0,0.034]
[1718618041420,0.0986951,65911.0,65906.0,0.036]
[1718618041675,0.0986951,65907.0,65906.0,0.036]
[1718618041881,0.5738801,65907.0,65906.0,0.036]
[1718618042043,0.1186951,65907.0,65906.0,0.013]
[1718618042249,0.2704231,65907.0,65906.0,0.002]
[1718618042475,0.0986951,65899.0,65895.0,0.151755]
[1718618042674,0.0986951,65899.0,65898.0,0.151749]
[1718618042874,0.0986951,65899.0,65898.0,0.21190611]
[1718618043075,0.0986951,65899.0,65898.0,0.023]
[1718618043076,0.8774301,65899.0,65898.0,0.023]
[1718618043394,0.8574301,65899.0,65898.0,0.023]
[1718618044000,0.8774301,65899.0,65898.0,0.023]
[1718618044238,0.8774301,65899.0,65898.0,0.037]
[1718618044893,1.1809241,65899.0,65898.0,0.014]
[1718618045234,0.8774301,65899.0,65898.0,0.014]
[1718618045438,0.8774301,65899.0,65889.0,0.15195169]
[1718618045439,0.2504421,65899.0,65889.0,0.15195169]
[1718618045638,0.0986951,65895.0,65890.0,0.18892861]
[1718618045836,0.0986951,65893.0,65891.0,0.12595241]
[1718618046078,0.0986951,65890.0,65889.0,0.00018269]
[1718618046294,0.0986951,65894.0,65889.0,0.18911408]
[1718618046495,0.0986951,65894.0,65890.0,0.14895426]
[1718618046703,0.30349,65900.0,65890.0,0.14895426]
[1718618046704,0.0986951,65892.0,65891.0,0.12595426]
[1718618046880,0.0986951,65892.0,65891.0,0.14895426]
[1718618047242,0.2704581,65892.0,65891.0,0.16295426]
[1718618047461,0.0986951,65892.0,65891.0,0.14895426]
[1718618048079,0.1186951,65892.0,65891.0,0.14895426]
[1718618048288,0.0986951,65892.0,65891.0,0.14895426]
[1718618048496,0.1186951,65892.0,65891.0,0.14895426]
[1718618048698,0.0986951,65892.0,65891.0,0.14895426]
[1718618049146,0.1186951,65892.0,65891.0,0.14895426]
[1718618049345,0.2704581,65892.0,65891.0,0.023]
[1718618051972,0.8774771,65895.0,65894.0,0.023]
[1718618052190,0.303503,65898.0,65889.0,0.00018269]
[1718618052191,0.5664391,65890.0,65889.0,0.00018269]
[1718618052650,0.8699751,65890.0,65889.0,0.00018269]
[1718618052860,0.5664391,65890.0,65889.0,0.00018269]
[1718618053083,0.0986951,65890.0,65889.0,0.00018269]
[1718618053288,0.303514,65895.0,65893.0,0.013]
[1718618053289,0.2504521,65895.0,65893.0,0.013]
[1718618053496,0.2704531,65894.0,65893.0,0.013]
[1718618053671,0.8774871,65894.0,65893.0,0.036]
[1718618053937,0.0986951,65897.0,65893.0,0.036]
[1718618054155,0.303478,65903.0,65894.0,0.023]
[1718618054156,0.151743,65901.0,65894.0,0.023]
[1718618054370,0.0986951,65903.0,65894.0,0.32684579]
[1718618054576,0.0986951,65903.0,65895.0,0.0628]
[1718618054776,0.0986951,65903.0,65896.0,0.023]
[1718618054777,0.0986951,65901.0,65896.0,0.023]
[1718618054983,0.303456,65908.0,65896.0,0.023]
[1718618054984,0.0986951,65899.0,65897.0,0.15208779]
[1718618055217,0.0986951,65903.0,65898.0,0.023]
[1718618055439,0.0986951,65907.0,65899.0,0.15208779]
[1718618055662,0.2369951,65914.0,65900.0,0.023]
[1718618055870,0.0986951,65912.0,65905.0,0.151733]
[1718618056080,0.0986951,65912.0,65906.0,0.023]
[1718618056287,0.171711,65915.0,65907.0,0.151728]
[1718618056288,0.0986951,65915.0,65907.0,0.151728]
[1718618056498,0.0986951,65915.0,65908.0,0.023]
[1718618056710,0.151715,65913.0,65908.0,0.023]
[1718618056942,0.0986951,65910.0,65908.0,0.086]
[1718618057177,0.0986951,65909.0,65908.0,0.086]
[1718618057847,0.0986951,65909.0,65908.0,0.023]
[1718618058058,0.0986951,65909.0,65908.0,0.033]
[1718618058059,0.5738671,65909.0,65908.0,0.033]
[1718618058257,0.5738671,65909.0,65908.0,0.03]
[1718618058675,1.1807631,65909.0,65908.0,0.017]
[1718618058891,0.8773151,65909.0,65908.0,0.01]
[1718618059325,0.75862,65909.0,65908.0,0.01]
[1718618059535,0.5538671,65909.0,65908.0,0.01]
[1718618060023,0.07604389,65917.0,65908.0,0.033]
[1718618060024,0.0986951,65914.0,65908.0,0.033]
[1718618060228,0.8773151,65909.0,65908.0,0.01]
[1718618060430,1.1807631,65909.0,65908.0,0.017]
[1718618061032,0.151742,65902.0,65897.0,0.04534299]
[1718618061276,0.0986951,65907.0,65897.0,0.04534299]
[1718618061277,0.151732,65906.0,65898.0,0.17508779]
[1718618061481,0.151732,65906.0,65899.0,0.12593837]
[1718618061482,0.151736,65904.0,65899.0,0.12593837]
[1718618061721,0.2504311,65904.0,65900.0,0.17508779]
[1718618061929,0.02,65907.0,65900.0,0.15208779]
[1718618061930,0.151734,65905.0,65900.0,0.15208779]
[1718618062100,0.151734,65905.0,65901.0,0.023]
[1718618062334,0.0986951,65907.0,65901.0,0.023]
[1718618062539,0.3256061,65915.0,65903.0,0.213536]
[1718618062746,0.0986951,65918.0,65904.0,0.17508779]
[1718618062962,0.0986951,65918.0,65905.0,0.188892]
[1718618063165,0.0986951,65918.0,65910.0,0.151721]
[1718618063369,0.0986951,65918.0,65906.0,0.34097979]
[1718618063541,0.0986951,65915.0,65908.0,0.007]
[1718618063778,0.2504101,65913.0,65909.0,0.15208779]
[1718618064015,0.2504101,65913.0,65910.0,0.023]
[1718618064223,0.0986951,65913.0,65910.0,0.023]
[1718618064429,0.303406,65919.0,65910.0,0.023]
[1718618064430,0.151708,65917.0,65910.0,0.023]
[1718618064637,0.151711,65915.0,65910.0,0.17908779]
[1718618065054,0.0986951,65918.0,65910.0,0.32680779]
[1718618065293,0.0986951,65919.0,65910.0,0.32680779]
[1718618065520,0.0986951,65919.0,65911.0,0.15208779]
[1718618065733,0.2504141,65911.0,65910.0,0.027]
[1718618065936,0.5738531,65911.0,65910.0,0.027]
[1718618066344,0.8772921,65911.0,65910.0,0.004]
[1718618066515,1.2455311,65911.0,65910.0,0.011]
[1718618066715,0.151745,65900.0,65899.0,0.0656]
[1718618066943,0.1834951,65911.0,65899.0,0.0656]
[1718618066944,0.0986951,65903.0,65899.0,0.36662265]
[1718618067147,0.0986951,65907.0,65900.0,0.17508779]
[1718618067352,0.1086951,65918.0,65901.0,0.42941468]
[1718618067527,0.0986951,65915.0,65902.0,0.40932994]
[1718618067742,0.02,65917.0,65903.0,0.23424215]
[1718618067743,0.0986951,65911.0,65903.0,0.23424215]
[1718618068033,0.151727,65908.0,65904.0,0.17508779]
[1718618068209,0.0986951,65914.0,65904.0,0.17508779]
[1718618068527,0.15173,65907.0,65904.0,0.17508779]
[1718618068943,0.303447,65910.0,65904.0,0.17508779]
[1718618069403,0.303425,65915.0,65904.0,0.17508779]
[1718618069404,0.0986951,65919.0,65912.0,0.0601]
[1718618069518,0.455137,65914.0,65913.0,0.023]
[1718618069720,0.5738321,65914.0,65913.0,0.023]
[1718618069922,0.0986951,65911.0,65908.0,0.023]
[1718618070175,0.0986951,65911.0,65909.0,0.15208779]
[1718618070394,0.0986951,65911.0,65910.0,0.023]
[1718618070734,0.0986951,65911.0,65910.0,0.17508779]
[1718618071047,0.455139,65914.0,65910.0,0.17508779]
[1718618071252,0.151715,65913.0,65910.0,0.17508779]
[1718618071914,0.0986951,65911.0,65910.0,0.18908779]
[1718618072118,0.151715,65913.0,65910.0,0.18908779]
[1718618072322,0.02,65920.0,65910.0,0.18908779]
[1718618072323,0.4020911,65921.0,65910.0,0.17508779]
[1718618072525,0.01,65924.0,65910.0,0.17508779]
[1718618072526,0.2503891,65923.0,65913.0,0.151714]
[1718618072736,0.0986951,65921.0,65914.0,0.023]
[1718618072940,0.4020981,65919.0,65914.0,0.023]
[1718618073139,0.151706,65917.0,65914.0,0.023]
[1718618073347,0.4020981,65919.0,65914.0,0.023]
[1718618073348,0.0986951,65918.0,65914.0,0.023]
[1718618073552,0.0986951,65919.0,65914.0,0.023]
[1718618073759,0.0986951,65923.0,65914.0,0.023]
[1718618073976,0.0986951,65923.0,65915.0,0.15208779]
[1718618074183,0.0986951,65923.0,65918.0,0.0661]
[1718618074388,0.0986951,65923.0,65918.0,0.21818779]
[1718618074595,0.0986951,65923.0,65919.0,0.023]
[1718618074793,0.171687,65925.0,65919.0,0.023]
[1718618074794,0.0986951,65921.0,65919.0,0.32678779]
[1718618075004,0.0986951,65921.0,65919.0,0.17508779]
[1718618075183,0.0986951,65923.0,65920.0,0.15208779]
[1718618075391,0.01,65936.0,65921.0,0.023]
[1718618075392,0.0986951,65931.0,65921.0,0.023]
[1718618075569,0.02,65933.0,65922.0,0.15208779]
[1718618075570,0.0986951,65933.0,65922.0,0.15208779]
[1718618075910,0.0986951,65931.0,65923.0,0.023]
[1718618076122,0.0986951,65931.0,65924.0,0.15208779]
[1718618076392,0.0986951,65935.0,65925.0,0.05335]
[1718618076604,0.19473899,65926.0,65925.0,0.023]
[1718618076781,0.19473899,65926.0,65922.0,0.023]
[1718618076782,0.5737711,65923.0,65922.0,0.023]
[1718618077400,0.5737771,65922.0,65921.0,0.04535468]
[1718618077610,0.8771651,65922.0,65921.0,0.04835468]
[1718618077831,0.8771651,65922.0,65921.0,0.003]
[1718618078029,0.151717,65912.0,65911.0,0.04534537]
[1718618078236,0.151717,65912.0,65911.0,0.19743316]
[1718618078449,0.5538461,65912.0,65911.0,0.19743316]
[1718618078953,0.5738461,65912.0,65911.0,0.19743316]
[1718618079298,0.151713,65914.0,65911.0,0.19743316]
[1718618079499,0.303411,65918.0,65912.0,0.17508779]
[1718618079500,0.1186951,65913.0,65912.0,0.17508779]
[1718618079750,0.151715,65913.0,65912.0,0.17508779]
[1718618079960,0.2704101,65913.0,65912.0,0.17508779]
[1718618080265,0.1186951,65913.0,65912.0,0.17508779]
[1718618080564,0.4021251,65913.0,65912.0,0.17508779]
[1718618080761,0.5738401,65913.0,65912.0,0.17508779]
[1718618081569,0.8772701,65913.0,65912.0,0.18808779]
[1718618081971,1.1807001,65913.0,65912.0,0.05]
[1718618083219,1.1807001,65913.0,65912.0,0.027]
[1718618083423,1.1907001,65913.0,65912.0,0.027]
[1718618083832,1.1807001,65913.0,65912.0,0.027]
[1718618084223,1.1807001,65913.0,65912.0,0.014]
[1718618084632,0.1286951,65913.0,65912.0,0.013]
[1718618084835,0.8872701,65913.0,65912.0,0.013]
[1718618085034,1.1907001,65913.0,65912.0,0.027]
[1718618085243,0.151747,65899.0,65894.0,0.1]
[1718618085499,0.151747,65899.0,65896.0,0.45626336]
[1718618085787,0.151747,65899.0,65897.0,0.36400389]
[1718618086091,0.0986951,65900.0,65897.0,0.36400389]
[1718618086092,0.151746,65900.0,65898.0,0.2119161]
[1718618086387,0.25025844,65900.0,65899.0,0.27803195]
[1718618086598,0.25025844,65900.0,65899.0,0.30103195]
[1718618087233,0.25025844,65900.0,65899.0,0.17508779]
[1718618088240,0.15156334,65900.0,65899.0,0.17508779]
[1718618088644,0.25025844,65900.0,65899.0,0.20208779]
[1718618090465,0.15156334,65900.0,65899.0,0.20208779]
[1718618091077,0.15156334,65900.0,65899.0,0.32802981]
[1718618091285,0.0986951,65901.0,65899.0,0.32802981]
[1718618091490,0.0986951,65901.0,65900.0,0.14894202]
[1718618091764,0.0986951,65904.0,65900.0,0.30102981]
[1718618091968,0.0986951,65904.0,65901.0,0.27802981]
[1718618092171,0.2504341,65903.0,65902.0,0.023]
[1718618092376,0.2504341,65903.0,65902.0,0.17508779]
[1718618092577,0.151739,65903.0,65902.0,0.17508779]
[1718618092788,0.2504341,65903.0,65902.0,0.17508779]
[1718618093201,0.455215,65903.0,65902.0,0.17508779]
[1718618093818,0.5539101,65903.0,65902.0,0.17508779]
[1718618094023,0.455215,65903.0,65902.0,0.17508779]
[1718618094431,0.455215,65903.0,65902.0,0.18908779]
[1718618095067,0.455215,65903.0,65902.0,0.20208779]
[1718618095279,0.13694389,65916.0,65902.0,0.20208779]
[1718618095280,0.0986951,65911.0,65904.0,0.151734]
[1718618095487,0.0986951,65911.0,65905.0,0.17508779]
[1718618095488,0.2504151,65911.0,65905.0,0.17508779]
[1718618095688,0.151726,65908.0,65905.0,0.17508779]
[1718618095889,0.0986951,65910.0,65905.0,0.17508779]
[1718618096297,0.2504241,65907.0,65905.0,0.17508779]
[1718618096500,0.151731,65906.0,65905.0,0.17508779]
[1718618096710,0.2704261,65906.0,65905.0,0.17508779]
[1718618097155,0.303389,65922.0,65911.0,0.0621]
[1718618097351,0.303389,65922.0,65912.0,0.25508779]
[1718618097352,0.151706,65917.0,65912.0,0.25508779]
[1718618097608,0.15171,65916.0,65913.0,0.12591492]
[1718618097821,0.15171,65916.0,65914.0,0.17508779]
[1718618098041,0.17473899,65916.0,65915.0,0.023]
[1718618098243,0.17473899,65916.0,65912.0,0.023]
[1718618098244,0.5738401,65913.0,65912.0,0.023]
[1718618098458,0.5738401,65913.0,65912.0,0.15208779]
[1718618098664,0.5738401,65913.0,65912.0,0.17508779]
[1718618099407,0.8772701,65913.0,65912.0,0.17508779]
[1718618099782,1.0159701,65913.0,65912.0,0.18908779]
[1718618099953,1.3194001,65913.0,65912.0,0.014]
[1718618100187,1.0159701,65913.0,65912.0,0.014]
[1718618100825,0.593845,65913.0,65912.0,0.014]
[1718618101035,0.151721,65911.0,65907.0,0.04540629]
[1718618101253,0.44213,65913.0,65909.0,0.04544117]
[1718618101498,0.44213,65913.0,65908.0,0.023]
[1718618101499,0.0986951,65915.0,65912.0,0.024]
[1718618101742,0.0986951,65914.0,65913.0,0.023]
[1718618101993,0.0986951,65921.0,65913.0,0.17508779]
[1718618102210,0.0986951,65923.0,65914.0,0.34923982]
[1718618102464,0.0986951,65923.0,65915.0,0.06844103]
[1718618102690,0.078,65929.0,65915.0,0.06844103]
[1718618102691,0.00093501,65931.0,65917.0,0.17444593]
[1718618102924,0.00093501,65931.0,65927.0,0.151681]
[1718618103150,0.00093501,65931.0,65929.0,0.0611]
[1718618103367,0.00093501,65931.0,65930.0,0.22948779]
[1718618103576,0.00093501,65931.0,65930.0,0.25248779]
[1718618103790,0.00093501,65931.0,65930.0,0.40416379]
[1718618104001,0.00093501,65931.0,65930.0,0.66107991]
[1718618104223,0.00093501,65931.0,65930.0,0.96438441]
[1718618104443,0.00093501,65931.0,65930.0,1.00983554]
[1718618104654,0.00093501,65931.0,65930.0,1.31318754]
[1718618104868,0.00093501,65931.0,65930.0,1.19968419]
[1718618105291,0.00093501,65931.0,65930.0,0.68364867]
[1718618105499,0.00093501,65931.0,65930.0,0.96433016]
[1718618105736,0.00093501,65931.0,65930.0,1.19967823]
[1718618105949,0.00093501,65931.0,65930.0,1.21367823]
[1718618106155,0.00093501,65931.0,65930.0,0.45529823]
[1718618106372,0.00093501,65931.0,65930.0,0.60697423]
[1718618106584,0.00093501,65931.0,65930.0,0.60697436]
[1718618106827,0.00093501,65931.0,65930.0,0.54404151]
[1718618107053,0.00093501,65931.0,65930.0,0.60235386]
[1718618107266,0.00093501,65931.0,65930.0,0.43116379]
[1718618107474,0.00093501,65931.0,65930.0,0.73451579]
[1718618107898,0.00093501,65931.0,65930.0,1.08316203]
[1718618108143,0.00093501,65931.0,65930.0,1.32061226]
[1718618109013,0.00093501,65931.0,65930.0,0.70090826]
[1718618109225,0.00093501,65931.0,65930.0,0.36043779]
[1718618109432,0.00093501,65931.0,65930.0,0.35943779]
[1718618109647,0.00093501,65931.0,65930.0,0.52511379]
[1718618109855,0.00093501,65931.0,65930.0,0.82846579]
[1718618110076,0.00093501,65931.0,65930.0,0.51211379]
[1718618110280,0.00093501,65931.0,65930.0,0.36043779]
[1718618110488,0.00093501,65931.0,65930.0,0.52511379]
[1718618110950,0.00093501,65931.0,65930.0,0.35943779]
[1718618111157,0.09963011,65931.0,65930.0,0.35943779]
[1718618111371,0.25130311,65931.0,65930.0,0.34308779]
[1718618111590,0.25130311,65931.0,65930.0,0.32908779]
[1718618111803,0.09963011,65931.0,65930.0,0.31608779]
[1718618112000,0.09963011,65931.0,65930.0,0.33008779]
[1718618112221,0.00093501,65931.0,65930.0,0.32908779]
[1718618112634,0.15260801,65931.0,65930.0,0.32908779]
[1718618112835,0.00093501,65931.0,65930.0,0.33008779]
[1718618113693,0.00093501,65931.0,65930.0,0.34308779]
[1718618113904,0.00093501,65931.0,65930.0,0.79811579]
[1718618114120,0.00093501,65931.0,65930.0,0.32908779]
[1718618114616,0.00093501,65931.0,65930.0,0.34308779]
[1718618114827,0.00093501,65931.0,65930.0,0.32908779]
[1718618115028,0.00093501,65931.0,65930.0,0.34308779]
[1718618115241,0.00093501,65931.0,65930.0,0.33008779]
[1718618115454,0.00093501,65931.0,65930.0,0.32908779]
[1718618115661,0.55465011,65931.0,65930.0,0.18808779]
[1718618115885,0.85799711,65931.0,65930.0,0.20208779]
[1718618116304,0.00093501,65931.0,65930.0,0.20208779]
[1718618116683,0.00093501,65931.0,65930.0,0.18908779]
[1718618117152,0.93849711,65931.0,65930.0,0.18808779]
[1718618117333,0.51645501,65931.0,65930.0,0.18808779]
[1718618117558,0.61515011,65931.0,65930.0,0.20208779]
[1718618117824,0.93849711,65931.0,65930.0,0.18808779]
[1718618118041,0.51645501,65931.0,65930.0,0.18808779]
[1718618118265,0.51645501,65931.0,65930.0,0.20208779]
[1718618118266,0.61515011,65931.0,65930.0,0.20208779]
[1718618118572,0.15260801,65931.0,65930.0,0.18808779]